Cogmind - Beta 12 @@@ ROGUE MODE // 2023.03.07 @ 02:40:13 Player: Grimalkyne Result: Self-destructed Performance ------------- Evolutions (2) 1000 Regions Visited (3) 600 Robots Destroyed (69) 345 Value Destroyed (2073) 2073 Prototype IDs (0) 0 Alien Tech Used (0) 0 Bonus (16) 16 TOTAL SCORE: 4034 Bonus ------- High Alert Combat Kills 16 Cogmind --------- Core Integrity 296/550 Matter 270/300 Energy 140/140 System Corruption 0% Temperature Critical (514) Movement Walking (260) Ox2 Location -8/Materials Parts ------- > --- POWER (1) -------- Light Deuterium Engine > --- PROPULSION (4) --- Aluminum Leg Aluminum Leg Carbon-fiber Leg > --- UTILITY (4) ------ Huge Storage Unit Improved Signal Interpreter Hardened Medium Armor Plating > --- WEAPON (2) ------- Beam Rifle Gauss Rifle > --- INVENTORY (25) --- Ion Engine Flight Unit Flight Unit Flight Unit VTOL Module VTOL Module Signal Interpreter ECM Suite Hacking Suite Katana Peak State ------------ > --- POWER ------------ Light Nuclear Core > --- PROPULSION ------- Aluminum Leg Aluminum Leg Carbon-fiber Leg Carbon-fiber Leg > --- UTILITY ---------- Medium Storage Unit Sensor Array Improved Signal Interpreter Improved Light Armor Plating > --- WEAPON ----------- Heavy Assault Rifle Gauss Rifle > --- INVENTORY -------- Flight Unit Flight Unit Flight Unit VTOL Module VTOL Module Small Storage Unit Signal Interpreter ECM Suite Hacking Suite [Rating: 26] Favorites ----------- Power Ion Engine Engine Ion Engine Power Core Light Nuclear Core Propulsion Aluminum Leg Leg Aluminum Leg Wheel Compact Wheel Flight Unit Flight Unit Utility Medium Storage Unit Device Sensor Array Storage Medium Storage Unit Processor Signal Interpreter Protection Improved Light Armor Plating Weapon Heavy Assault Rifle Energy Gun Beam Rifle Ballistic Gun Heavy Assault Rifle Build | -11 -10 -9 -8 ------- Run | Jun Mat Mat Mat Slots Evolved 4 | . . 2 2 Power . | . . . . Propulsion 2 | . . 1 1 Utility 2 | . . 1 1 Weapon . | . . . . Parts Attached 66 | 6 18 21 21 Power 8 | 1 2 2 3 Engine 5 | 1 2 1 1 Core 3 | . . 1 2 Reactor . | . . . . Propulsion 30 | 2 7 13 8 Treads . | . . . . Leg 27 | . 7 13 7 Wheel 2 | 2 . . . Hover . | . . . . Flight 1 | . . . 1 Utility 14 | 1 3 3 7 Device 4 | . 1 1 2 Storage 4 | 1 1 . 2 Processor 3 | . . 2 1 Hackware . | . . . . Protection 3 | . 1 . 2 Artifact . | . . . . Weapon 14 | 2 6 3 3 Energy Gun 7 | 1 4 1 1 Energy Cannon . | . . . . Ballistic Gun 7 | 1 2 2 2 Ballistic Cannon . | . . . . Launcher . | . . . . Special Weapon . | . . . . Impact Weapon . | . . . . Slashing Weapon . | . . . . Piercing Weapon . | . . . . Special Melee Weapon . | . . . . Unidentified Prototypes . | . . . . Parts Lost 8 | . . 2 6 Power 2 | . . 1 1 Propulsion 3 | . . . 3 Utility 3 | . . 1 2 Weapon . | . . . . Highest Loss Streak 2 | . . 1 2 To Critical Strikes . | . . . . Average Slot Usage (%) 97 | . 97 99 95 Engine 8 | . 14 10 1 Core 1 | . . . 5 Leg 31 | . 25 33 34 Device 7 | . 10 4 8 Storage 11 | . 14 11 9 Processor 9 | . . 16 11 Protection 2 | . 1 . 6 Energy Gun 9 | . 14 11 3 Ballistic Gun 13 | . 14 11 14 Naked Turns . | . . . . Heaviest Build 101 | 12 22 23 101 Greatest Support 50 | 32 32 30 50 Greatest Overweight (x) 2 | . 1 . 2 Average Overweight (x) . | . . . . Largest Inventory Capacity 25 | 8 10 10 25 Average Capacity 10 | 6 9 10 10 Most Carried 10 | 4 10 10 10 Average Carried 9 | 2 8 9 9 Final Capacity 25 | 8 10 10 25 Final Carried 10 | 4 10 10 10 Class Distribution -------------------- 50% | Scavenger-Mutant 43% | Mutant 5% | Scavenger-Skirmisher Dominant Class ---------------- Mutant | -10/Materials Scavenger-Mutant | -9/Materials Scavenger-Mutant | -8/Materials Resources | -11 -10 -9 -8 ----------- Run | Jun Mat Mat Mat Matter Collected 1651 | 260 309 449 633 Remotely . | . . . . Salvage Created 2855 | . 545 1281 1029 Parts 163 | . 42 78 43 Haulers Intercepted 1 | . . . 1 Recyclers Shooed 5 | . 3 2 . Parts Field Recycled . | . . . . Retrieved Matter . | . . . . Parts Self-Destructed . | . . . . Prevented . | . . . . Kills | -11 -10 -9 -8 ------- Run | Jun Mat Mat Mat Combat Hostiles Destroyed 54 | . 13 23 18 Guns 54 | . 13 23 18 Classes Destroyed 12 | . 5 4 3 Worker 2 | . 1 . 1 Hauler 1 | . . . 1 Recycler 4 | . . 3 1 Mechanic 1 | . . . 1 Operator 2 | . 1 1 . Watcher 5 | . 2 3 . Swarmer 10 | . 3 3 4 Grunt 36 | . 10 15 11 Brawler 1 | . . 1 . Duelist 1 | . . 1 . Sentry 5 | . . 3 2 Hunter 1 | . . . 1 Best Kill Streak 6 | . 6 4 5 Combat Bots Only 5 | . 5 4 4 Max Kills in Single Turn 2 | . 2 1 1 Gunslinging . | . . . . Exploded . | . . . . Melee . | . . . . Uniques/NPCs Destroyed . | . . . . Combat | -11 -10 -9 -8 -------- Run | Jun Mat Mat Mat Damage Taken 2876 | . 484 874 1518 Core 503 | . 64 185 254 Absorbed by Shields . | . . . . Redirected to Shielding 3 | . 3 . . Core Remaining (%) 75 | 100 74 53 . Volleys Fired 207 | . 43 79 85 Largest 2 | . 2 2 2 Hottest 84 | . 79 79 84 Shots Fired 414 | . 86 158 170 Gun 414 | . 86 158 170 Cannon . | . . . . Launcher . | . . . . Special . | . . . . Kinetic 253 | . 43 79 131 Thermal 149 | . 31 79 39 Explosive . | . . . . Electromagnetic 12 | . 12 . . Robot Hit Streak 15 | . 8 13 15 Robot Miss Streak 5 | . 4 5 4 Penetration Max 1 | . . . 1 Secondary Targets 3 | . 1 1 1 Max Gunslinging Chain 1 | . 1 1 1 Shots Hit Robots 265 | . 52 98 115 Core Hits 121 | . 28 49 44 Critical Kills . | . . . . Critical Parts Destroyed . | . . . . Critical Strikes 16 | . 3 9 4 Burn 16 | . 3 9 4 Melee Attacks . | . . . . Impact . | . . . . Slashing . | . . . . Piercing . | . . . . Sneak Attacks . | . . . . Combat Hostiles . | . . . . Follow-up Attacks . | . . . . Damage Inflicted 4315 | . 810 1528 1977 Guns 4315 | . 810 1528 1977 Cannons . | . . . . Explosions . | . . . . Melee . | . . . . Ramming . | . . . . Kinetic 2732 | . 326 734 1672 Thermal 1452 | . 353 794 305 Explosive . | . . . . Electromagnetic 131 | . 131 . . Impact . | . . . . Slashing . | . . . . Piercing . | . . . . Highest Corruption . | . . . . Average Corruption . | . . . . Corruption Purged . | . . . . Corruption Blocked . | . . . . Overload Shots . | . . . . Overflow Damage . | . . . . Projectiles . | . . . . Explosions . | . . . . Melee . | . . . . Knockbacks . | . . . . Impact . | . . . . Kinetic . | . . . . Secondary . | . . . . Self-Inflicted Damage . | . . . . Shots . | . . . . Rammed . | . . . . Targets Rammed . | . . . . Kicked . | . . . . Crushed . | . . . . Highest Temperature 514 | . 216 170 514 Average Temperature 69 | . 57 52 109 Received Heat Transfer 1371 | . 231 393 747 Effects 5 | . . . 5 Shutdowns 1 | . . . 1 Interference 2 | . . . 2 Damage (minor) 1 | . . . 1 Damage (major) 1 | . . . 1 Siege Activations . | . . . . Robots Corrupted . | . . . . Combat Hostiles . | . . . . Parts Fried 1 | . 1 . . Impact Corruptions . | . . . . Robots Melted . | . . . . Combat Hostiles . | . . . . Parts Melted 7 | . 1 3 3 Heat Transferred 4873 | . 1099 2701 1073 Parts Sabotaged . | . . . . Parts Stolen . | . . . . Parts Stripped . | . . . . Power Chain Reactions . | . . . . Missiles Intercepted . | . . . . Alert | -11 -10 -9 -8 ------- Run | Jun Mat Mat Mat Peak Influence 428 | . 233 428 382 Initial 155 | . . 42 155 Average 189 | . 108 208 253 Maximum Alert Level 2 | . 1 2 1 Low Security (%) 52 | 100 85 47 24 Level 1 45 | . 14 48 75 Level 2 1 | . . 3 . Level 3 . | . . . . Level 4 . | . . . . Level 5 . | . . . . High Security . | . . . . Max Security . | . . . . Squads Dispatched 10 | . 2 3 5 Investigation 6 | . 1 2 3 Extermination . | . . . . Reinforcement 3 | . 1 1 1 Assault . | . . . . Garrison 1 | . . . 1 Intercept . | . . . . Searches Triggered . | . . . . Construction Impeded . | . . . . Haulers Reinforced . | . . . . Active Scanning Responses . | . . . . Cargo Convoy Interrupts . | . . . . Stealth | -11 -10 -9 -8 --------- Run | Jun Mat Mat Mat Distress Signals 6 | . 3 1 2 Communications Jammed . | . . . . Distress Signals . | . . . . Times Spotted 87 | . 20 39 28 Peak Tracking Total 5 | . 5 5 5 Tactical Retreats 3 | . . 1 2 Traps | -11 -10 -9 -8 ------- Run | Jun Mat Mat Mat Traps Triggered 5 | . 1 2 2 Indirectly . | . . . . Trap Hack Attempts . | . . . . Triggered . | . . . . Disarmed . | . . . . Reprogrammed . | . . . . Reused . | . . . . Traps Extracted . | . . . . Installed . | . . . . Triggered . | . . . . Machines | -11 -10 -9 -8 ---------- Run | Jun Mat Mat Mat Machines Disabled 2 | . . 1 1 Max in Single Turn 1 | . . 1 1 Machines Repaired . | . . . . Machines Sabotaged . | . . . . Overloaded Fab Kills . | . . . . Hacking | -11 -10 -9 -8 --------- Run | Jun Mat Mat Mat Machines Accessed 4 | . 1 1 2 Terminals 3 | . 1 1 1 Fabricators . | . . . . Repair Stations . | . . . . Recycling Units . | . . . . Scanalyzers . | . . . . Garrison Access 1 | . . . 1 Total Hacks 9 | . 3 2 4 Successful 1 | . 1 . . Failed 8 | . 2 2 4 Catastrophic 2 | . . . 2 Database Lockouts . | . . . . Manual 2 | . . . 2 Terminals 7 | . 3 2 2 Fabricators . | . . . . Repair Stations . | . . . . Recycling Units . | . . . . Scanalyzers . | . . . . Garrison Access 2 | . . . 2 Terminal Hacks 1 | . 1 . . Alert Level 1 | . 1 . . Fabricator Hacks . | . . . . Repair Station Hacks . | . . . . Recycling Unit Hacks . | . . . . Scanalyzer . | . . . . Garrison Access Hacks . | . . . . Unauthorized Hacks . | . . . . Terminals . | . . . . Fabricators . | . . . . Repair Stations . | . . . . Recycling Units . | . . . . Scanalyzers . | . . . . Garrison Access . | . . . . Data Cores Recovered 1 | . . 1 . Used . | . . . . Hacking Detections 4 | . 1 1 2 Full Trace Events 1 | . . . 1 Feedback Events . | . . . . Feedback Blocked . | . . . . Robot Schematics Acquired . | . . . . Robots Built . | . . . . Authchips . | . . . . Time . | . . . . Total Robot Build Rating . | . . . . Part Schematics Acquired . | . . . . Parts Built . | . . . . Authchips . | . . . . Time . | . . . . Total Part Build Rating . | . . . . Parts Repaired . | . . . . Time . | . . . . Parts Recycled . | . . . . Recycled Matter . | . . . . Retrieved Matter . | . . . . Retrieved Components . | . . . . Parts Scanalyzed . | . . . . Part Schematics Acquired . | . . . . Parts Damaged . | . . . . Bothacking | -11 -10 -9 -8 ------------ Run | Jun Mat Mat Mat Used RIF Installer . | . . . . Robots Hacked . | . . . . Non-combat . | . . . . Combat . | . . . . Robot Hacks Applied . | . . . . Relay Couplers Released . | . . . . Fabnet Peak Effective % . | . . . . Robots Rewired . | . . . . Allies Hacked . | . . . . Hacks Repelled . | . . . . Allies | -11 -10 -9 -8 -------- Run | Jun Mat Mat Mat Total Allies . | . . . . Largest Group . | . . . . Highest-Rated Group . | . . . . Highest-Rated Ally . | . . . . Total Orders . | . . . . Ally Attacks . | . . . . Total Damage . | . . . . Kills . | . . . . Allies Corrupted . | . . . . Allies Melted . | . . . . Intel | -11 -10 -9 -8 ------- Run | Jun Mat Mat Mat Robot Analysis Total . | . . . . Derelict Logs Recovered . | . . . . Drone Launches . | . . . . Drone Recoveries . | . . . . Exploration | -11 -10 -9 -8 ------------- Run | Jun Mat Mat Mat Turns Passed 3565 | 58 1076 1285 1146 Spaces Moved 1745 | 47 523 637 538 Core 2 | 2 . . . Treads . | . . . . Legs 1667 | . 492 637 538 Wheels 76 | 45 31 . . Hover . | . . . . Flight . | . . . . Fastest Speed 50 | 50 100 120 120 Average Speed 130 | 97 156 120 121 Slowest Speed 260 | 100 190 120 260 Overloaded Moves . | . . . . Propulsion Burnouts . | . . . . Robots Hopped . | . . . . Cave-ins Triggered . | . . . . Exploration Rate (%) 31 | 5 55 33 31 Regions Visited 3 Branch Regions . Pre-discovered Areas . | . . . . Known Exits Taken 1 | . . 1 . Unknown Exits Taken 2 | 1 1 . . Scrap Searched . | . . . . Spaces Dug . | . . . . Terrain Destroyed . | . . . . Melee . | . . . . Projectile . | . . . . AOE . | . . . . Terrain Rammed . | . . . . Walls Destroyed . | . . . . Machines Disabled . | . . . . Actions | -11 -10 -9 -8 --------- Run | Jun Mat Mat Mat Total 2636 | 56 702 1013 865 Wait 525 | . 85 239 201 Move 1742 | 46 522 636 538 Hop . | . . . . Pick Up 33 | 4 10 14 5 Fast Attach 21 | 6 7 . 8 Attach 11 | . 1 6 4 Detach 5 | . 4 . 1 Swap 34 | . 10 15 9 Drop 58 | . 20 24 14 Fire 207 | . 43 79 85 Melee . | . . . . Ram . | . . . . Kick . | . . . . Crush . | . . . . Escape Stasis . | . . . . Rewire . | . . . . Trap . | . . . . Miscellaneous . | . . . . Route ------- -11/Junkyard -10/Materials (discovered 3 exits: *Mat x2 / [*Min]) -9/Materials (discovered 2 exits: *Mat / [*Sto]) -8/Materials History --------- Turn | Location | Event 31 | -11/Junkyard | Discovered new exit (range 14) 59 | -11/Junkyard | Entered Materials 321 | -10/Materials | Discovered new exit (range 7) 333 | -10/Materials | Build established: Mutant 748 | -10/Materials | Discovered new exit (range 11) 814 | -10/Materials | Discovered new exit (range 16) 1135 | -10/Materials | Entered another Materials area 1135 | -9/Materials | Evolved 2 slots: Propulsion x1, Utility x1 1264 | -9/Materials | Discovered new exit (range 10) 1846 | -9/Materials | Build established: Scavenger-Mutant 2120 | -9/Materials | Discovered new exit (range 18) 2419 | -9/Materials | Identified exit to Materials 2420 | -9/Materials | Entered another Materials area 2420 | -8/Materials | Evolved 2 slots: Propulsion x1, Utility x1 2820 | -8/Materials | Garrison activated, responded to threat 3566 | -8/Materials | Self-destructed Last Messages --------------- 03539_ Slug penetrates G-47 Trooper. 03539_ G-47 Trooper destroyed. 03542_ Slug penetrates Door. 03542_ K-01 Serf collects debris. 03543_ Acquired 44 matter. 03545_ G-47 Trooper suffers critical hit (Burn). 03545_ Slug penetrates Wall. 03546_ K-01 Serf collects debris. 03554_ Slug penetrates K-01 Serf. 03554_ K-01 Serf destroyed. 03557_ Slug penetrates G-47 Trooper. 03557_ Imp. Heat Sink melted. 03557_ G-47 Trooper destroyed. 03562_ Power failure, Lgt. Deuterium Engine shutdown. 03563_ Slug penetrates Wall. 03564_ Overheating: System interference. 03564_ Gauss Rifle temporarily disabled. 03564_ Beam Rifle temporarily disabled. 03565_ Overheating: Lgt. Deuterium Engine damaged (-18). 03566_ Overheating: Carbon-fiber Leg damaged (-6). Map ----- +----------------------------------------------------+ | ?##########+#### ###### * # | | ??????????# # # | | ??????????# # # | | ??????????# # # | | ??????????# ####+########## # | | ??????????# ## ###???####### | | ??######### ## """ # ! ????###?? | | ??# %# + R" # ???# | | ??# !!# ## """ # ??+ | | ??# !!!+%%## # ??# | | ??# ] # ## # = ?## ### | | ??# [#]!######### ??# ## | | ??# # #???????# ?# ## | | ??######## #???????# ## ## | | ?????????# #???????# + + | | ?????????# #???????######### ## | | ?????????# #?????#########?# ## | | ?????????# #?????+ ### ## | | ?????????# #?????# [ !## | | ??######## #?????# #### ### ### | | ??# !!! # #?????# #?##+###+### | | ??# !! # w#?????# #?# [ | | ??# !! #= #?????# ### """ | | ??# =#*g#?????# + """ | | ??# *= %%% #?????+ ## """ "" | | ??# !@# #?????# ## """ | | ??######## ##???## ## R" | | ????????# ! ##### ## ! """ | | ????????# ## | | ????????#! ######+#### | | ????????# # #### | | ????????###### #= | | ?????????????# """ "" +[! | | ?????????????# """ T" # | | ?????????????# """ "" #### | | ?????????????# #?? | | ???????????? ! #?? | | ??????????? /?? | | ??????????#############+## # ? | | ?????????????????????????###### | | ????????????????????????????????! | | ???????????????????????????????? | | ????????????????????????????????? | | ????????????????????????????????? | | ????????????????????????????????? | | ????????????????????????????????? | | ????????????????????????????????? | | ????????????????????????????????? | | | | | +----------------------------------------------------+ Best States ------------- Heat Dissipation 31 Energy Generation 14 Energy Capacity 265 Matter Stores 300 Matter Capacity 300 Sight Range 18 Robot Scan Range 14 Terrain Scan Range 14 Terrain Scan Density 10 Armor Coverage 225 Weapon Shielding 33 Evasion (%) 55 Item Schematics ----------------- None Robot Schematics ------------------ None Fabricated ------------ Nothing Alien Tech Used ----------------- None Achievements -------------- Party Time Challenges ------------ None Game ------ Seed MasterAerolevClaws Manual? 0 Play Time 00:31:18 Cumulative 43.7 hours Start 2023.03.07 @ 02:09:00 End 2023.03.07 @ 02:40:13 Sessions 1 Manual Loads 0 Difficulty Rogue Special Mode None Game No. 36 Rogue 35 Adventurer 1 Explorer 0 Win Type - Total 0 Types 0/0/0/0/0/0/0/0/0 Lore% 22 Gallery% 35 Achievement% 27 Wizard Run 0 Options --------- ASCII 0 Keyboard 1 Movement Numpad Keybinds 0 Fullscreen 2 Font 12/Smallcaps Map View 83x54 Tactical HUD 1 Map Filters NONE Filters NONE Steam 1 RUN: b26e454e-4d70-42c0-b914-668b73323c0c